bitfinex-derivatives/quotes_BTCF0:USTF0_20250324
["timestamp","ask_amount","ask_price","bid_price","bid_amount"]
[1742815302981,0.3641797,87616.0,87615.0,0.01045654]
[1742815303476,0.35508324,87616.0,87615.0,0.01045654]
[1742815304368,0.36415668,87616.0,87615.0,0.01145654]
[1742815304769,0.36415668,87616.0,87615.0,0.12558994]
[1742815306171,0.35508324,87616.0,87615.0,0.12558994]
[1742815306479,0.35508324,87616.0,87615.0,0.01145654]
[1742815306876,0.35508324,87616.0,87615.0,0.12558994]
[1742815307984,0.35508324,87616.0,87615.0,0.01145654]
[1742815308174,0.35508324,87616.0,87615.0,0.12558994]
[1742815308374,0.35508324,87616.0,87615.0,0.01145654]
[1742815309274,0.35508324,87616.0,87615.0,0.12558994]
[1742815309475,0.36407507,87616.0,87615.0,0.12558994]
[1742815309976,0.36407507,87616.0,87615.0,0.01145654]
[1742815310888,0.36407507,87616.0,87615.0,0.12558994]
[1742815311387,0.36407507,87616.0,87615.0,0.01145654]
[1742815311773,0.36407507,87616.0,87615.0,0.12558994]
[1742815312176,0.37364063,87616.0,87615.0,0.14558994]
[1742815312485,0.25005139,87616.0,87615.0,0.12558994]
[1742815312782,0.25005139,87616.0,87615.0,0.26258994]
[1742815312982,0.2409521,87616.0,87615.0,0.26258994]
[1742815313875,0.25027991,87616.0,87615.0,0.26258994]
[1742815314087,0.0636,87627.0,87615.0,0.26258994]
[1742815314088,0.3608,87629.0,87626.0,0.1711772]
[1742815314289,0.1141178,87627.0,87626.0,0.0776595]
[1742815314588,0.11428814,87628.0,87627.0,0.1141177]
[1742815314790,0.11540815,87628.0,87627.0,0.1447177]
[1742815315490,0.24190815,87628.0,87627.0,0.1447177]
[1742815316292,0.24182815,87628.0,87627.0,0.1447177]
[1742815317390,0.24482815,87628.0,87627.0,0.1447177]
[1742815317592,0.13071115,87628.0,87627.0,0.1547177]
[1742815317888,0.12967114,87628.0,87627.0,0.1547177]
[1742815318091,0.13071115,87628.0,87627.0,0.1547177]
[1742815319195,0.12967114,87628.0,87627.0,0.1547177]
[1742815319487,0.13067114,87628.0,87627.0,0.1547177]
[1742815319884,0.24478754,87628.0,87627.0,0.1547177]
[1742815320083,0.24590755,87628.0,87627.0,0.1547177]
[1742815320685,0.24390755,87628.0,87627.0,0.1547177]
[1742815321288,0.24190755,87628.0,87627.0,0.1547177]
[1742815321595,0.30740755,87628.0,87627.0,0.1557177]
[1742815326198,0.30740755,87628.0,87627.0,0.2222177]
[1742815326597,0.31650183,87628.0,87627.0,0.1557177]
[1742815327792,0.32574514,87628.0,87627.0,0.1557177]
[1742815329501,0.43986456,87628.0,87627.0,0.1457177]
[1742815329699,0.43981776,87628.0,87627.0,0.1457177]
[1742815329900,0.43981776,87628.0,87627.0,0.0316]
[1742815330795,0.43981776,87628.0,87627.0,0.0016]
[1742815330994,0.1141217,87624.0,87623.0,0.3608]
[1742815331194,0.13369249,87624.0,87623.0,0.36212]
[1742815331399,0.20009249,87624.0,87623.0,0.36212]
[1742815331702,0.31421191,87624.0,87623.0,0.36212]
[1742815332291,0.31521191,87624.0,87623.0,0.36212]
[1742815332497,0.31621191,87624.0,87623.0,0.36212]
[1742815334204,0.38131191,87624.0,87623.0,0.36212]
[1742815334699,0.38131191,87624.0,87623.0,0.48781536]
[1742815334900,0.38131191,87624.0,87623.0,0.36212]
[1742815335689,0.39651101,87624.0,87623.0,0.36212]
[1742815335898,0.41182468,87624.0,87623.0,0.36212]
[1742815336193,0.41182468,87624.0,87623.0,0.00132]
[1742815336400,0.1141269,87620.0,87619.0,0.1141277]
[1742815336709,0.13976252,87620.0,87619.0,0.1147277]
[1742815337000,0.13976252,87620.0,87619.0,0.1147282]
[1742815337203,0.4054951,87620.0,87619.0,0.1147282]
[1742815337402,0.4061773,87620.0,87619.0,0.1147282]
[1742815337610,0.4061773,87620.0,87619.0,0.1753282]
[1742815337810,0.3907448,87620.0,87619.0,0.1753282]
[1742815337991,0.52741093,87620.0,87619.0,0.1753282]
[1742815339006,0.52741093,87620.0,87619.0,0.0006]
[1742815339199,0.1141321,87616.0,87615.0,0.00045654]
[1742815339396,0.1246383,87616.0,87615.0,0.11518994]
[1742815339707,0.27028413,87616.0,87615.0,0.12707219]
[1742815339906,0.40882192,87616.0,87615.0,0.41183219]
[1742815340102,0.40882192,87616.0,87615.0,0.47587219]
[1742815340496,0.29468982,87616.0,87615.0,0.48587219]
[1742815340703,0.29469208,87616.0,87615.0,0.48587219]
[1742815341216,0.29466016,87616.0,87615.0,0.48587219]
[1742815341510,0.18052806,87616.0,87615.0,0.48687219]
[1742815341705,0.29466016,87616.0,87615.0,0.48687219]
[1742815341902,0.18052806,87616.0,87615.0,0.48687219]
[1742815342510,0.05082806,87616.0,87615.0,0.48687219]
[1742815342805,0.0340926,87616.0,87615.0,0.48687219]
[1742815343009,0.08210271,87621.0,87620.0,0.1141269]
[1742815343214,0.0637,87627.0,87626.0,0.114119]
[1742815343406,0.128,87627.0,87626.0,0.654719]
[1742815343607,0.12924001,87627.0,87626.0,0.654719]
[1742815343813,0.128,87627.0,87626.0,0.654719]
[1742815344014,0.12924001,87627.0,87626.0,0.654719]
[1742815345011,0.00324001,87627.0,87626.0,0.654719]
[1742815345243,0.23519925,87632.0,87631.0,0.1141125]
[1742815345429,0.23643926,87632.0,87631.0,0.7609925]
[1742815345822,0.20492745,87639.0,87638.0,0.1141034]
[1742815346026,0.20588746,87639.0,87638.0,0.5747434]
[1742815347131,0.31998956,87639.0,87638.0,0.5747434]
[1742815348024,0.32898956,87639.0,87638.0,0.5747434]
[1742815348224,0.12406211,87639.0,87638.0,0.5747434]
[1742815348426,0.18676211,87639.0,87638.0,0.5747434]
[1742815349141,0.24766211,87639.0,87638.0,0.5747434]
[1742815351836,0.13356001,87639.0,87638.0,0.5747434]
[1742815352238,0.24766211,87639.0,87638.0,0.5747434]
[1742815353837,0.24766211,87639.0,87638.0,0.7241034]
[1742815355021,0.25686127,87639.0,87638.0,0.7241034]
[1742815355643,0.2661586,87639.0,87638.0,0.7241034]
[1742815355830,0.2661586,87639.0,87638.0,0.7848034]
[1742815356825,0.26614617,87639.0,87638.0,0.7848034]
[1742815357023,0.26614617,87639.0,87638.0,0.8465034]
[1742815357328,0.14804407,87639.0,87638.0,0.8465034]
[1742815357531,0.26214617,87639.0,87638.0,0.8465034]
[1742815357723,0.14804407,87639.0,87638.0,0.8465034]
[1742815358026,0.14708406,87639.0,87638.0,0.8465034]
[1742815358226,0.14504407,87639.0,87638.0,0.8465034]
[1742815358714,0.25895638,87639.0,87638.0,0.8465034]
[1742815358915,0.24995944,87639.0,87638.0,0.8465034]
[1742815360915,0.13585734,87639.0,87638.0,0.8465034]
[1742815361228,0.24995944,87639.0,87638.0,0.8465034]
[1742815361829,0.13585734,87639.0,87638.0,0.8465034]
[1742815362029,0.01225734,87639.0,87638.0,0.8465034]
[1742815362228,0.12539943,87639.0,87638.0,0.8465034]
[1742815362432,0.12627944,87639.0,87638.0,0.8465034]
[1742815362623,0.25907944,87639.0,87638.0,0.8465034]
[1742815365434,0.25907944,87639.0,87638.0,0.6971434]
[1742815365741,0.25907944,87639.0,87638.0,0.8436234]
[1742815367430,0.00017114,87647.0,87642.0,0.0570486]
[1742815367630,0.0570353,87664.0,87650.0,0.0570438]
[1742815367828,0.26196185,87665.0,87664.0,0.1140696]
[1742815368034,0.26256186,87665.0,87664.0,0.3446696]
[1742815368236,0.26256186,87665.0,87664.0,0.4731696]
[1742815368630,0.26256186,87665.0,87664.0,0.48476473]
[1742815368631,0.37663312,87665.0,87664.0,0.48476473]
[1742815368836,0.31959872,87665.0,87664.0,0.48476473]
[1742815369034,0.20552746,87665.0,87664.0,0.64072473]
[1742815369437,0.20552746,87665.0,87664.0,0.64938668]
[1742815369637,0.21052746,87665.0,87664.0,0.64938668]
[1742815370366,0.21552746,87665.0,87664.0,0.64938668]
[1742815370543,0.01060001,87665.0,87664.0,0.64938668]
[1742815370746,0.01,87665.0,87664.0,0.64938668]
[1742815370937,0.01060001,87665.0,87664.0,0.64938668]
[1742815371244,0.00760001,87665.0,87664.0,0.64938668]
[1742815371838,0.00260001,87665.0,87664.0,0.64938668]
[1742815372145,0.00460001,87665.0,87664.0,0.64938668]
[1742815372540,0.13810001,87665.0,87664.0,0.64938668]
[1742815373136,0.2515683,87665.0,87664.0,0.37492668]
[1742815373338,0.36623957,87665.0,87664.0,0.23926195]
[1742815373738,0.36623957,87665.0,87664.0,0.35333155]
[1742815373946,0.37520445,87665.0,87664.0,0.23926195]
[1742815374441,0.37520445,87665.0,87664.0,0.35333155]
[1742815374641,0.37520445,87665.0,87664.0,0.36476663]
[1742815375039,0.36623957,87665.0,87664.0,0.36476663]
[1742815375241,0.36623957,87665.0,87664.0,0.25069703]
[1742815375447,0.36623957,87665.0,87664.0,0.36476663]
[1742815376247,0.36623957,87665.0,87664.0,0.23926195]
[1742815376845,0.36623957,87665.0,87664.0,0.35333155]
[1742815377861,0.36623957,87665.0,87664.0,0.36478917]
[1742815378734,0.36623957,87665.0,87664.0,0.25071957]
[1742815379041,0.36623957,87665.0,87664.0,0.35333155]
[1742815379644,0.36623957,87665.0,87664.0,0.36500455]
[1742815380039,0.36623957,87665.0,87664.0,0.25093495]
[1742815380247,0.36623957,87665.0,87664.0,0.23926195]
[1742815380448,0.36623957,87665.0,87664.0,0.35333155]
[1742815381134,0.36623957,87665.0,87664.0,0.23926195]
[1742815381339,0.36623957,87665.0,87664.0,0.25087309]
[1742815382342,0.36623957,87665.0,87664.0,0.36494269]
[1742815382650,0.36623957,87665.0,87664.0,0.25087309]
[1742815383944,0.36623957,87665.0,87664.0,0.36494269]
[1742815384145,0.36623957,87665.0,87664.0,0.49224269]
[1742815384947,0.36623957,87665.0,87664.0,0.37817309]
[1742815385252,0.36623957,87665.0,87664.0,0.49224269]
[1742815391856,0.36623957,87665.0,87664.0,0.37817309]
[1742815392461,0.36623957,87665.0,87664.0,0.49224269]
[1742815393043,0.36623957,87665.0,87664.0,0.37817309]
[1742815393865,0.1140787,87657.0,87656.0,0.00017114]
[1742815394160,0.1149587,87657.0,87656.0,0.02077114]
[1742815394357,0.1149587,87657.0,87656.0,0.01218762]
[1742815394560,0.35214037,87657.0,87656.0,0.01218762]
[1742815394963,0.35214037,87657.0,87656.0,0.07618762]
[1742815395461,0.71294037,87657.0,87656.0,0.00077114]
[1742815395648,0.71294037,87657.0,87656.0,0.00017114]
[1742815396259,0.72423848,87657.0,87656.0,0.00017114]
[1742815397164,0.72623848,87657.0,87656.0,0.00017114]
[1742815397367,0.71594037,87657.0,87656.0,0.00017114]
[1742815398353,0.71794037,87657.0,87656.0,0.00017114]
[1742815400149,0.72931632,87657.0,87656.0,0.00017114]
[1742815402267,0.86739632,87657.0,87656.0,0.00017114]
[1742815403168,0.89084956,87657.0,87656.0,0.00017114]
[1742815403366,0.89084741,87657.0,87656.0,0.00017114]
[1742815404060,0.89184741,87657.0,87656.0,0.00017114]
[1742815404362,1.01839632,87657.0,87656.0,4e-08]
[1742815404556,1.01539632,87657.0,87656.0,4e-08]
[1742815404764,1.01839632,87657.0,87656.0,4e-08]
[1742815405063,1.04288717,87657.0,87656.0,4e-08]
[1742815406669,1.04488717,87657.0,87656.0,4e-08]
[1742815407962,1.07339338,87657.0,87656.0,4e-08]
[1742815408270,1.08241744,87657.0,87656.0,4e-08]
[1742815408471,0.1141073,87635.0,87634.0,0.0656]
[1742815408671,0.4757073,87635.0,87634.0,0.0662]
[1742815408969,0.67863136,87635.0,87634.0,0.0656]
[1742815409169,0.59881303,87635.0,87634.0,0.0956]
[1742815409357,0.59881303,87635.0,87634.0,0.2103086]
[1742815409760,0.59881303,87635.0,87634.0,0.2635086]
[1742815409962,0.23801303,87635.0,87634.0,0.2635086]
[1742815410563,0.00982406,87635.0,87634.0,0.2635086]
[1742815410771,0.1141073,87635.0,87634.0,0.2635073]
[1742815411066,0.11470731,87635.0,87634.0,0.2635073]
[1742815412969,0.11470731,87635.0,87634.0,0.2735073]
[1742815415075,0.11470731,87635.0,87634.0,0.4097873]
[1742815415264,0.12387993,87635.0,87634.0,0.4097873]
[1742815415869,0.12387993,87635.0,87634.0,0.3997873]
[1742815416076,0.13908166,87635.0,87634.0,0.3997873]
[1742815416279,0.15437061,87635.0,87634.0,0.3997873]
[1742815417282,0.13896396,87635.0,87634.0,0.3997873]
[1742815417469,0.12367501,87635.0,87634.0,0.3997873]
[1742815418764,0.12367501,87635.0,87634.0,0.2635073]
[1742815418962,0.23778532,87635.0,87634.0,0.1494]
[1742815419181,0.36498532,87635.0,87634.0,0.1294]
[1742815419772,0.36498532,87635.0,87634.0,0.1288]
[1742815420175,0.35601762,87635.0,87634.0,0.1288]
[1742815421080,0.35601762,87635.0,87634.0,0.1294]
[1742815421671,0.35601762,87635.0,87634.0,0.1288]
[1742815421885,0.22881762,87635.0,87634.0,0.1288]
[1742815422678,0.35711762,87635.0,87634.0,0.1294]
[1742815424685,0.1141112,87632.0,87631.0,0.00045646]
[1742815424983,0.1147912,87632.0,87631.0,0.00045646]
[1742815425179,0.3064912,87632.0,87631.0,0.00045646]
[1742815425382,0.3064912,87632.0,87631.0,0.00105646]
[1742815425383,0.42060151,87632.0,87631.0,0.00105646]
[1742815425989,0.42060151,87632.0,87631.0,0.00205646]
[1742815426680,0.42060151,87632.0,87631.0,0.00145646]
[1742815427477,0.59101771,87632.0,87631.0,0.00145646]
[1742815428782,0.60228449,87632.0,87631.0,0.00145646]
[1742815429690,0.59101771,87632.0,87631.0,0.00145646]
[1742815430694,0.1141177,87627.0,87626.0,0.00017114]
[1742815430985,0.11471771,87627.0,87626.0,0.00017114]
[1742815431183,0.37869771,87627.0,87626.0,0.00017114]
[1742815431382,0.49281192,87627.0,87626.0,0.00017114]
[1742815432685,0.49281192,87627.0,87626.0,0.00217114]
[1742815437684,0.49281192,87627.0,87618.0,0.0611]
[1742815437685,0.1141282,87619.0,87618.0,0.0611]
[1742815437886,0.11472821,87619.0,87618.0,0.0611]
[1742815438094,0.18092821,87619.0,87618.0,0.0617]
[1742815438390,0.29504893,87619.0,87618.0,0.0617]
[1742815438792,0.29504893,87619.0,87618.0,0.1788295]
[1742815438998,0.35824893,87619.0,87618.0,0.1788295]
[1742815439685,0.35824893,87619.0,87618.0,0.2457295]
[1742815441097,0.35824893,87619.0,87618.0,0.1316]
[1742815442190,0.36949797,87619.0,87618.0,0.0036]
[1742815442490,0.1141321,87616.0,87615.0,0.00045654]
[1742815442690,0.1141321,87616.0,87615.0,0.00105654]
[1742815442691,0.11473211,87616.0,87615.0,0.00105654]
[1742815442891,0.24493211,87616.0,87615.0,0.00045654]
[1742815443287,0.35906325,87616.0,87615.0,0.00045654]
[1742815443590,0.35906325,87616.0,87615.0,0.00105654]
[1742815443591,0.36805012,87616.0,87615.0,0.00105654]
[1742815443785,0.37737993,87616.0,87615.0,0.00105654]
[1742815444394,0.37737993,87616.0,87615.0,0.00045654]
[1742815444594,0.37737993,87616.0,87615.0,0.00205654]
[1742815444800,0.1141373,87612.0,87611.0,0.04086439]
[1742815445010,0.1393631,87612.0,87611.0,0.04154439]
[1742815445198,0.27864997,87612.0,87611.0,0.04154439]
[1742815445504,0.45468502,87612.0,87611.0,0.04154439]
[1742815445800,0.43946903,87612.0,87611.0,0.04154439]
[1742815446002,0.43907017,87612.0,87611.0,0.04154439]
[1742815446303,0.43907017,87612.0,87611.0,0.04186439]
[1742815446493,0.43907017,87612.0,87611.0,0.001]
[1742815447807,0.1141438,87607.0,87600.0,0.1]
[1742815448108,0.474949,87603.0,87602.0,0.061]
[1742815448294,0.47554901,87603.0,87602.0,0.0616]
[1742815448490,0.66094901,87603.0,87602.0,0.0616]
[1742815449099,0.775101,87603.0,87602.0,0.0616]
[1742815449402,0.78527477,87603.0,87602.0,0.0616]
[1742815449903,0.72327477,87603.0,87602.0,0.122]
[1742815451406,0.72327477,87603.0,87602.0,0.0616]
[1742815451605,0.1141516,87601.0,87600.0,0.1]
[1742815451798,0.1148716,87601.0,87600.0,0.1006]
[1742815452109,0.2385716,87601.0,87600.0,0.1006]
[1742815452291,0.48752359,87601.0,87600.0,0.1656]
[1742815452603,0.48752359,87601.0,87600.0,0.10064]
[1742815452810,0.1141633,87592.0,87591.0,0.065]
[1742815453100,0.4757233,87592.0,87591.0,0.06564]
[1742815453304,0.5994233,87592.0,87591.0,0.06564]
[1742815453502,0.72255926,87592.0,87591.0,0.06564]
[1742815453705,0.72255926,87592.0,87584.0,0.0632]
[1742815453706,0.1141686,87588.0,87584.0,0.0632]
[1742815453914,0.1141738,87584.0,87581.0,0.20505167]
[1742815454101,0.4756938,87584.0,87583.0,0.00109671]
[1742815454301,0.48467517,87584.0,87583.0,1e-08]
[1742815454506,0.1141764,87582.0,87581.0,0.31922937]
[1742815454698,0.1150964,87582.0,87581.0,0.20565167]
[1742815455311,0.1150964,87582.0,87581.0,0.0006]
[1742815455312,0.29477315,87582.0,87581.0,0.0006]
[1742815455492,0.29477315,87582.0,87581.0,0.1765777]
[1742815456005,0.22927315,87582.0,87581.0,0.1965777]
[1742815456309,0.23127315,87582.0,87581.0,0.1965777]
[1742815457105,0.23123204,87582.0,87581.0,0.1965777]
[1742815457806,0.29503204,87582.0,87581.0,0.1965777]
[1742815458109,0.29703204,87582.0,87581.0,0.21116222]
[1742815459107,0.29703204,87582.0,87581.0,0.1965777]
[1742815459494,0.36233204,87582.0,87581.0,0.1965777]
[1742815459892,0.36233204,87582.0,87581.0,0.0824]
[1742815460106,0.36233204,87582.0,87581.0,0.1965777]
[1742815460913,0.36233204,87582.0,87581.0,0.1765777]
[1742815463000,0.23323204,87582.0,87581.0,0.1765777]
[1742815463214,0.23323204,87582.0,87581.0,0.1865777]
[1742815463506,0.11909675,87582.0,87581.0,0.1865777]
[1742815464103,0.23327315,87582.0,87581.0,0.1865777]
[1742815464411,0.11909675,87582.0,87581.0,0.1865777]
[1742815464808,0.23327315,87582.0,87581.0,0.1865777]
[1742815465012,0.11909675,87582.0,87581.0,0.1865777]
[1742815465209,0.00492,87582.0,87581.0,0.1865777]
[1742815465415,0.13575065,87592.0,87591.0,0.1141646]
[1742815465614,0.25055395,87592.0,87591.0,0.3548046]
[1742815465811,0.25055395,87592.0,87591.0,0.4843046]
[1742815466006,0.1148033,87592.0,87591.0,0.4843046]
[1742815466708,0.00564,87592.0,87591.0,0.4843046]
[1742815466910,0.00964,87592.0,87591.0,0.4843046]
[1742815467101,0.00964,87592.0,87591.0,0.5456046]
[1742815467303,0.1857033,87592.0,87591.0,0.5456046]
[1742815467504,0.1857033,87592.0,87591.0,0.6788446]
[1742815468016,0.2503033,87592.0,87591.0,0.6788446]
[1742815469611,0.00964,87592.0,87591.0,0.6788446]
[1742815469818,0.01863147,87592.0,87591.0,0.6788446]
[1742815470014,0.13279477,87592.0,87591.0,0.6788446]
[1742815470200,0.01863147,87592.0,87591.0,0.6788446]
[1742815470405,0.13279477,87592.0,87591.0,0.6788446]
[1742815470605,0.01863147,87592.0,87591.0,0.6788446]
[1742815471010,0.25949477,87592.0,87591.0,0.6788446]
[1742815471215,0.14533147,87592.0,87591.0,0.6788446]
[1742815471512,0.19749477,87592.0,87591.0,0.6788446]
[1742815472218,0.25949477,87592.0,87591.0,0.4178046]
[1742815472516,0.37366109,87592.0,87591.0,0.5503646]
[1742815473116,0.37366109,87592.0,87591.0,0.4833046]
[1742815477027,0.01863147,87592.0,87591.0,0.4833046]
[1742815477223,0.01799147,87592.0,87591.0,0.4933046]
[1742815477526,0.00968,87592.0,87591.0,0.4933046]
[1742815480029,0.009,87592.0,87591.0,0.4933046]
[1742815480421,0.00972,87592.0,87591.0,0.4933046]
[1742815481020,0.009,87592.0,87591.0,0.4933046]
[1742815481330,8e-05,87593.0,87592.0,0.1141633]
[1742815481532,0.0647,87598.0,87597.0,0.1712352]
[1742815481832,0.06534,87598.0,87597.0,1.0526752]
[1742815482017,0.20109065,87598.0,87597.0,1.0526752]
[1742815482223,0.20113065,87598.0,87597.0,1.0526752]
[1742815483035,0.31528615,87598.0,87597.0,1.0526752]
[1742815483330,0.32028615,87598.0,87597.0,1.0526752]
[1742815483531,0.38648615,87598.0,87597.0,1.0526752]
[1742815483720,0.38648615,87598.0,87597.0,1.1835152]
[1742815484531,0.39148615,87598.0,87597.0,1.1845152]
[1742815486029,0.27733065,87598.0,87597.0,1.1845152]
[1742815486626,0.14158,87598.0,87597.0,1.1845152]
[1742815487414,0.2557355,87598.0,87597.0,1.1845152]
[1742815487631,0.14158,87598.0,87597.0,1.1845152]
[1742815487830,0.1409,87598.0,87597.0,1.1845152]
[1742815488522,0.14158,87598.0,87597.0,1.1845152]
[1742815490035,0.1409,87598.0,87597.0,1.1845152]
[1742815490328,0.14158,87598.0,87597.0,1.1845152]
[1742815492124,0.2550555,87598.0,87597.0,1.1845152]
[1742815492529,0.2550555,87598.0,87597.0,1.0536752]
[1742815492827,0.2556955,87598.0,87597.0,1.1831952]
[1742815493336,0.2556955,87598.0,87597.0,1.0536752]
[1742815493538,0.2556955,87598.0,87597.0,1.1831152]
[1742815493830,0.2556955,87598.0,87597.0,1.0536752]
[1742815494038,0.2556955,87598.0,87597.0,1.1830352]
[1742815495428,0.369854,87598.0,87597.0,1.1830352]
[1742815495937,0.369854,87598.0,87597.0,1.2492352]
[1742815496638,0.14154,87598.0,87597.0,1.2492352]
[1742815496938,0.1409,87598.0,87597.0,1.2492352]
[1742815497237,0.2550555,87598.0,87597.0,1.3115352]
[1742815497737,0.2556955,87598.0,87597.0,1.3115352]
[1742815498253,0.2516955,87598.0,87597.0,1.3115352]
[1742815499144,0.2466955,87598.0,87597.0,1.3105352]
[1742815499736,0.13254,87598.0,87597.0,1.3105352]
[1742815500327,0.0657,87598.0,87597.0,1.3105352]
[1742815500523,0.0004,87608.0,87605.0,0.1141464]
[1742815500736,0.17022709,87613.0,87612.0,0.1141373]
[1742815500940,0.17102709,87613.0,87612.0,0.3848573]
[1742815501143,0.17102709,87613.0,87612.0,0.5151573]
[1742815501342,0.17102709,87613.0,87612.0,0.5807573]
[1742815501642,0.28516309,87613.0,87612.0,0.5171573]
[1742815502135,0.114936,87613.0,87612.0,0.5171573]
[1742815503242,0.114936,87613.0,87612.0,0.53113446]
[1742815503633,0.241436,87613.0,87612.0,0.4515573]
[1742815503931,0.241436,87613.0,87612.0,0.27072]
[1742815504137,0.239436,87613.0,87612.0,0.3848573]
[1742815504728,0.239436,87613.0,87612.0,0.27072]
[1742815504938,0.239436,87613.0,87612.0,0.3848573]
[1742815507835,0.3535945,87613.0,87612.0,0.39354917]
[1742815509345,0.3535945,87613.0,87612.0,0.27072]
[1742815509534,0.3535945,87613.0,87612.0,0.00072]
[1742815510132,0.3535945,87613.0,87612.0,0.1148573]
[1742815510341,0.3535945,87613.0,87612.0,0.12359627]
[1742815510642,0.3535945,87613.0,87612.0,0.46859627]
[1742815510842,0.1253,87613.0,87612.0,0.46859627]
[1742815511033,0.1253,87613.0,87612.0,0.47859627]
[1742815511432,0.239436,87613.0,87612.0,0.47859627]
[1742815514234,0.1253,87613.0,87612.0,0.47859627]
[1742815514841,0.239436,87613.0,87612.0,0.47859627]
[1742815519539,0.1253,87613.0,87612.0,0.47859627]
[1742815519741,0.1245,87613.0,87612.0,0.47859627]
[1742815519948,8e-05,87615.0,87614.0,0.1141347]
[1742815520251,0.062,87623.0,87620.0,0.1141269]
[1742815520472,0.00089125,87621.0,87620.0,0.5848869]
[1742815520651,0.11501685,87621.0,87620.0,0.7136869]
[1742815521041,0.23981685,87621.0,87620.0,0.7136869]
[1742815521555,0.24181685,87621.0,87620.0,0.7136869]
[1742815522856,0.24381685,87621.0,87620.0,0.7136869]
[1742815533766,0.24381685,87621.0,87620.0,0.8382069]
[1742815533961,0.24381685,87621.0,87620.0,0.7136869]
[1742815534168,0.24381685,87621.0,87620.0,0.8381269]
[1742815538973,0.24381685,87621.0,87620.0,0.724]
[1742815539161,0.35794539,87621.0,87620.0,0.1248869]
[1742815539673,0.35794539,87621.0,87620.0,0.2545869]
[1742815542173,0.35794539,87621.0,87620.0,0.1924869]
[1742815542976,0.35794539,87621.0,87620.0,0.2548869]
[1742815544175,0.35794539,87621.0,87620.0,0.3781269]
[1742815544471,0.35794539,87621.0,87620.0,0.00076]
[1742815547776,0.35794539,87621.0,87620.0,0.1801869]
[1742815548170,0.35794539,87621.0,87620.0,0.06606]
[1742815556475,0.12969125,87621.0,87620.0,0.4001869]
[1742815556881,0.12969125,87621.0,87620.0,0.2435869]
[1742815557988,0.24381685,87621.0,87620.0,0.2435869]
[1742815567193,0.24381685,87621.0,87620.0,0.12946]
[1742815568385,0.24381685,87621.0,87620.0,0.2435869]
[1742815577900,0.35794539,87621.0,87620.0,0.12946]
[1742815579894,0.35794539,87621.0,87620.0,0.2435869]
[1742815580596,0.35794539,87621.0,87620.0,0.12946]
[1742815582197,0.35794539,87621.0,87620.0,0.06606]
[1742815582502,0.1141334,87615.0,87611.0,0.1141379]
[1742815582804,0.1147734,87615.0,87614.0,0.36148]
[1742815583100,0.3129734,87615.0,87614.0,0.36148]
[1742815583401,0.0570699,87610.0,87596.0,0.0570788]
[1742815583600,0.4749464,87605.0,87604.0,0.01077125]
[1742815583801,0.4757864,87605.0,87604.0,0.01077125]
[1742815584007,0.6739864,87605.0,87604.0,0.06737125]
[1742815584195,0.78813252,87605.0,87604.0,0.18151895]
[1742815585207,0.78813252,87605.0,87604.0,0.24841895]
[1742815586003,0.78813252,87605.0,87604.0,0.25817039]
[1742815586212,0.42733252,87605.0,87604.0,0.26017039]
[1742815586898,0.42733252,87605.0,87604.0,0.14602269]
[1742815587512,0.42733252,87605.0,87604.0,0.26017039]
[1742815589207,0.42733252,87605.0,87604.0,0.14602269]
[1742815592009,0.42733252,87605.0,87604.0,0.07912269]
[1742815593507,0.44054641,87605.0,87604.0,0.01252269]
[1742815594011,0.44054641,87605.0,87604.0,0.01192269]
[1742815594512,0.44054641,87605.0,87604.0,0.01252269]
[1742815594710,0.42733252,87605.0,87604.0,0.01252269]
[1742815595108,0.42733252,87605.0,87604.0,0.00377125]
[1742815595313,0.44051108,87605.0,87604.0,0.00317125]
[1742815598214,0.42733252,87605.0,87604.0,0.00317125]
[1742815599819,0.44030141,87605.0,87604.0,0.00317125]
[1742815600213,0.42733252,87605.0,87604.0,0.00317125]
[1742815600618,0.42733252,87605.0,87604.0,0.26377125]
[1742815600619,0.36023252,87605.0,87604.0,0.26377125]
[1742815601115,0.36023252,87605.0,87604.0,0.27709844]
[1742815601709,0.36023252,87605.0,87604.0,0.40869844]
[1742815602523,0.36023252,87605.0,87604.0,0.52284614]
[1742815602726,0.11498612,87605.0,87604.0,0.78284614]
[1742815602914,0.17014147,87609.0,87605.0,0.0570728]
[1742815603225,0.28492297,87609.0,87608.0,0.1141425]
[1742815603411,0.17078147,87609.0,87608.0,0.3647825]
[1742815603610,0.17078147,87609.0,87608.0,0.4602825]
[1742815603611,0.28492267,87609.0,87608.0,0.4602825]
[1742815604010,0.39907205,87609.0,87608.0,0.4602825]
[1742815605120,0.39907205,87609.0,87608.0,0.4612825]
[1742815605313,0.22893058,87609.0,87608.0,0.4612825]
[1742815606411,0.26193058,87609.0,87608.0,0.4612825]
[1742815607315,0.14778938,87609.0,87608.0,0.4612825]
[1742815607515,0.11478938,87609.0,87608.0,0.4612825]
[1742815607711,0.22829058,87609.0,87608.0,0.4612825]
[1742815607915,0.22889059,87609.0,87608.0,0.4612825]
[1742815608223,0.11474939,87609.0,87608.0,0.4612825]
[1742815608426,0.11414938,87609.0,87608.0,0.4612825]
[1742815610022,0.22829058,87609.0,87608.0,0.4612825]
[1742815610329,0.25989059,87609.0,87608.0,0.4612825]
[1742815610538,0.29289059,87609.0,87608.0,0.4612825]
[1742815610718,0.32519059,87609.0,87608.0,0.4612825]
[1742815612532,0.29289059,87609.0,87608.0,0.4612825]
[1742815613029,0.25989059,87609.0,87608.0,0.4612825]
[1742815614824,0.25989059,87609.0,87608.0,0.4933825]
[1742815615024,0.14574939,87609.0,87608.0,0.4933825]
[1742815615220,0.25929058,87609.0,87608.0,0.4933825]
[1742815615428,0.25993058,87609.0,87608.0,0.4933825]
[1742815616234,0.11478938,87609.0,87608.0,0.4933825]
[1742815616424,8e-05,87610.0,87609.0,0.1141412]
[1742815616622,0.0570688,87612.0,87611.0,0.1141386]
[1742815616821,0.0570688,87612.0,87611.0,0.3867186]
[1742815617025,0.05766881,87612.0,87611.0,0.4191186]
[1742815617233,0.08986881,87612.0,87611.0,0.4191186]
[1742815620636,0.03280001,87612.0,87611.0,0.4191186]
[1742815620829,0.0322,87612.0,87611.0,0.4191186]
[1742815621936,0.1463373,87612.0,87611.0,0.4191186]
[1742815622236,0.1469773,87612.0,87611.0,0.4191186]
[1742815622838,0.1788773,87612.0,87611.0,0.4191186]
[1742815624931,0.29301756,87612.0,87611.0,0.24068]
[1742815625127,0.29301756,87612.0,87611.0,0.3548186]
[1742815625324,0.0570716,87608.0,87597.0,0.10379063]
[1742815625532,0.1141673,87589.0,87583.0,0.41043798]
[1742815625730,0.5939673,87589.0,87588.0,0.34173756]
[1742815625930,0.60708898,87589.0,87588.0,0.34173756]
[1742815626134,0.72122924,87589.0,87588.0,0.0006]
[1742815626335,0.1141725,87585.0,87584.0,0.0309]
[1742815626625,0.1141725,87585.0,87584.0,0.03154]
[1742815626626,0.1152525,87585.0,87584.0,0.03154]
[1742815626942,0.1152525,87585.0,87584.0,0.06364]